Cogmind - Beta 15 @@@ ROGUE MODE // 2025.09.01 @ 03:45:40 Player: LameThyst Result: Destroyed by G-47 Trooper with Particle Gun Performance ------------- Evolutions (3) 1500 Regions Visited (9) 1800 Robots Destroyed (60) 300 Value Destroyed (1435) 1435 Prototype IDs (29) 580 Alien Tech Used (0) 0 Bonus (796) 796 TOTAL SCORE: 6411 Bonus ------- Follower Combat Kills 541 Aligned with FarCom 300 Friendly Fire -45 Cogmind --------- Core Integrity 0/700 Matter 250/300 Energy 325/325 System Corruption 8% Temperature Critical (564) Movement Core (950) Ox18 Location -7/Factory Parts ------- > --- POWER (1) -------- Antimatter Reactor > --- PROPULSION (5) --- Heavy Treads Gravmag System > --- UTILITY (4) ------ Large Storage Unit Hardened Light Armor Plating Hardened Light Armor Plating > --- WEAPON (3) ------- Heavy Beamcaster Heavy Battle Rifle > --- INVENTORY (15) --- Light Angular Momentum Engine Backup Propulsion III Cloak of Protection Plasma Cutter Peak State ------------ > --- POWER ------------ Antimatter Reactor > --- PROPULSION ------- Heavy Treads Airjet Backup Propulsion III Antigrav System > --- UTILITY ---------- Improved Heat Sink Backup Plating III Hardened Light Armor Plating Hardened Medium Armor Plating > --- WEAPON ----------- Heavy Beamcaster Heavy Battle Rifle Heavy Flail > --- INVENTORY -------- Backup Power III Light Angular Momentum Engine Cloak of Protection Plasma Cutter Carbide Saw [Rating: 57] Favorites ----------- Power Ion Engine Engine Ion Engine Power Core Micro Nuclear Core Reactor Antimatter Reactor Propulsion Aluminum Leg Treads Heavy Treads Leg Aluminum Leg Hover Unit Backup Propulsion III Flight Unit Cooled VTOL Module Utility Large Storage Unit Device Seismic Detector Storage Large Storage Unit Protection Hardened Light Armor Plating Weapon Assault Rifle Energy Gun Heavy Beamcaster Energy Cannon Heavy Ion Cannon Ballistic Gun Assault Rifle Ballistic Cannon Advanced Assault Cannon Launcher Missile Launcher Special Weapon Mining Laser Impact Weapon Heavy Flail Slashing Weapon Scythe Build | -11 -10 -10 -10 -9 -8 -8 -7 -7 -7 ------- Run | Yrd Mat Min Exi Min Mat Sto Fac Was Fac Slots Evolved 6 | . . . . . 4 . 2 . . Power . | . . . . . . . . . . Propulsion 3 | . . . . . 2 . 1 . . Utility 2 | . . . . . 2 . . . . Weapon 1 | . . . . . . . 1 . . Parts Attached 67 | 8 7 1 1 . 10 8 14 12 6 Power 8 | 1 . 1 . . 1 1 2 2 . Engine 6 | 1 . 1 . . 1 1 1 1 . Core 1 | . . . . . . . 1 . . Reactor 1 | . . . . . . . . 1 . Propulsion 15 | 2 . . . . 2 4 3 3 1 Treads 1 | . . . . . . . . 1 . Leg 9 | 2 . . . . 2 4 1 . . Wheel . | . . . . . . . . . . Hover 3 | . . . . . . . . 2 1 Flight 2 | . . . . . . . 2 . . Utility 21 | 3 2 . 1 . 3 1 3 4 4 Device 8 | 2 1 . . . 1 . 2 1 1 Storage 5 | 1 . . 1 . . 1 1 . 1 Processor . | . . . . . . . . . . Hackware . | . . . . . . . . . . Protection 8 | . 1 . . . 2 . . 3 2 Artifact . | . . . . . . . . . . Weapon 23 | 2 5 . . . 4 2 6 3 1 Energy Gun 5 | 1 1 . . . . . 2 1 . Energy Cannon 1 | . . . . . . . 1 . . Ballistic Gun 8 | 1 2 . . . 1 2 . 1 1 Ballistic Cannon 1 | . . . . . . . 1 . . Launcher 2 | . 1 . . . 1 . . . . Special Weapon 1 | . 1 . . . . . . . . Impact Weapon 1 | . . . . . 1 . . . . Slashing Weapon 4 | . . . . . 1 . 2 1 . Piercing Weapon . | . . . . . . . . . . Special Melee Weapon . | . . . . . . . . . . Unidentified Prototypes 2 | . . . . . . . 2 . . Corrupted Parts 2 | . . . . . . 2 . . . System Corruption 5 | . . . . . . 5 . . . Parts Lost 33 | . . . . . 1 8 18 . 6 Power 3 | . . . . . . 2 1 . . Propulsion 9 | . . . . . 1 3 2 . 3 Utility 8 | . . . . . . 3 3 . 2 Weapon 13 | . . . . . . . 12 . 1 Highest Loss Streak 12 | . . . . . 1 4 12 . 5 To Critical Strikes . | . . . . . . . . . . Average Backups 10 | 4 7 8 10 11 12 14 13 4 5 Power 1 | . 1 1 1 1 1 1 . . 1 Propulsion . | 1 . . 1 1 . . . . 1 Utility 3 | . 3 3 4 6 5 5 3 1 1 Weapon 3 | 1 2 3 3 3 5 5 5 . . Tool/Special . | . . . . . . . . . . Unused Backups 19 | 2 5 . . . 2 2 . 6 2 Power 2 | . . . . . 2 . . . . Propulsion 3 | 1 1 . . . . . . 1 . Utility 7 | . 3 . . . . 2 . 1 1 Weapon 5 | 1 1 . . . . . . 3 . Tool/Special 2 | . . . . . . . . 1 1 Average Slot Usage (%) 77 | . 99 100 71 99 99 96 52 56 85 Engine 6 | . 14 14 14 14 9 9 . 2 . Core 1 | . . . . . . . 5 . . Leg 17 | . 27 28 28 28 35 32 1 . . Hover 2 | . . . . . . . . 14 17 Device 10 | . 11 14 14 14 12 14 8 3 6 Storage 11 | . 14 14 14 14 9 11 14 . 3 Protection 5 | . 2 . . . 13 10 . 13 18 Energy Gun 1 | . 2 . . . . . . 3 7 Ballistic Gun 11 | . 25 26 . 27 11 13 6 4 6 Impact Weapon 3 | . . . . . 4 2 6 5 6 Peak Build Rating 57 | 8 8 7 7 9 21 23 26 57 57 Average Rating 19 | 5 6 7 5 8 18 19 21 33 52 On Entrance 12 | . 7 7 7 7 9 20 14 1 56 Naked Turns 42 | . . . . . . . 22 20 . Heaviest Build 61 | 14 18 16 26 30 45 44 47 44 61 Greatest Support 70 | 20 20 20 20 20 40 40 10 70 70 Greatest Overweight (x) 15 | . 1 . 1 1 1 3 15 1 . Average Overweight (x) 1 | . . . . 1 . . 8 . . Largest Inventory Capacity 15 | 8 8 8 15 15 15 15 15 5 15 Average Capacity 12 | 7 8 8 13 15 15 15 14 5 10 Most Carried 15 | 8 8 8 13 13 15 15 15 5 7 Average Carried 10 | 4 7 7 10 11 12 14 13 4 5 Final Capacity 15 | 8 8 8 15 15 15 15 5 5 15 Final Carried 15 | 7 8 8 13 13 15 13 5 5 4 Class Distribution -------------------- 72% | Mutant 20% | Scavenger-Mutant 4% | Commander-Mutant Dominant Class ---------------- Mutant | -10/Materials Mutant | -10/Mines Mutant | -10/Exiles Mutant | -9/Mines Mutant | -8/Materials Commander-Mutant | -8/Storage Mutant | -7/Factory Scavenger-Mutant | -7/Waste Scavenger-Mutant | -7/Factory Resources | -11 -10 -10 -10 -9 -8 -8 -7 -7 -7 ----------- Run | Yrd Mat Min Exi Min Mat Sto Fac Was Fac Matter Collected 2530 | 316 404 95 200 24 126 845 212 191 117 Remotely . | . . . . . . . . . . Salvage Created 1610 | 218 290 116 . 24 131 397 335 . 99 Parts 118 | 15 29 18 . 1 10 24 18 . 3 Haulers Intercepted 3 | . 1 . . . . 2 . . . Recyclers Shooed 2 | . 1 . . . . 1 . . . Parts Field Recycled . | . . . . . . . . . . Retrieved Matter . | . . . . . . . . . . Parts Self-Destructed . | . . . . . . . . . . Prevented . | . . . . . . . . . . Kills | -11 -10 -10 -10 -9 -8 -8 -7 -7 -7 ------- Run | Yrd Mat Min Exi Min Mat Sto Fac Was Fac Combat Hostiles Destroyed 39 | . 8 5 . . 6 8 10 . 2 Melee 1 | . . . . . . 1 . . . Guns 12 | . 5 1 . . 1 3 1 . 1 Cannons 4 | . . . . . . . 4 . . AOE 21 | . 3 4 . . 5 4 5 . . Classes Destroyed 13 | 3 6 . . . 1 1 2 . . Worker 3 | 1 2 . . . . . . . . Builder 4 | . 1 1 . . . 1 1 . . Tunneler 6 | 5 . 1 . . . . . . . Hauler 3 | . 1 . . . . 2 . . . Recycler 2 | 1 . . . . . 1 . . . Operator 1 | . 1 . . . . . . . . Watcher 2 | . 1 . . . 1 . . . . Swarmer 16 | . 6 3 . . 4 3 . . . Cutter 2 | . . . . . . . 2 . . Grunt 10 | . 2 2 . . . 2 4 . . Sentry 5 | . . . . . 2 2 1 . . Hunter 2 | . . . . . . 1 . . 1 Programmer 4 | . . . . . . . 3 . 1 Best Kill Streak 5 | 3 4 4 . . 5 5 4 . 1 Combat Bots Only 4 | . 3 3 . . 4 3 4 . 1 Max Kills in Single Turn 4 | 1 4 2 . . 3 4 2 . 1 Gunslinging 1 | . 1 . . . . . . . . Exploded 3 | . 3 1 . . 2 2 2 . . Melee 1 | . . . . . . 1 . . . Uniques/NPCs Destroyed . | . . . . . . . . . . Combat | -11 -10 -10 -10 -9 -8 -8 -7 -7 -7 -------- Run | Yrd Mat Min Exi Min Mat Sto Fac Was Fac Hostile Shots Fired 415 | . 36 11 . . 23 81 217 1 46 Missed 127 | . 8 2 . . 4 24 73 1 15 Hits 288 | . 28 9 . . 19 57 144 . 31 Melee 1 | . . . . . . . 1 . . Projectile 287 | . 28 9 . . 19 57 143 . 31 AOE 1 | . . . . . . . 1 . . Critical Strikes 11 | . . . . . . 3 5 . 3 Damage Taken 4738 | . 320 140 . . 273 969 2084 . 952 Core 974 | . 74 32 . . 14 143 603 . 108 Absorbed by Shields . | . . . . . . . . . . Ignored by Resistances 20 | . . . . . . 20 . . . Regen/Repaired (Parts) 50 | . . . . . . . . . 50 Core Remaining (%) 76 | 100 . . . 57 . 71 . . . Volleys Fired 162 | 12 40 10 . 1 19 30 24 5 21 Largest 3 | 2 2 2 . 2 2 2 3 1 2 Hottest 129 | 60 100 50 . 40 59 64 129 33 114 Shots Fired 304 | 24 76 20 . 2 25 53 55 7 42 Gun 255 | 24 72 14 . 2 22 43 29 7 42 Cannon 21 | . . . . . . . 21 . . Launcher 26 | . 2 6 . . 3 10 5 . . Special 2 | . 2 . . . . . . . . Kinetic 210 | 12 52 14 . 2 22 43 39 5 21 Thermal 49 | 12 3 . . . . . 11 2 21 Explosive 26 | . 2 6 . . 3 10 5 . . Electromagnetic 19 | . 19 . . . . . . . . Robot Hit Streak 12 | 6 6 4 . 3 6 8 8 12 8 Robot Miss Streak 7 | 1 4 4 . . 7 4 5 2 3 Penetration Max 1 | . . . . . . 1 1 . . Secondary Targets 1 | . 1 . . . . . . . . Max Gunslinging Chain 1 | . 1 . . . . . . . . Shots Hit Robots 189 | 16 40 12 . 2 10 31 38 5 35 Core Hits 96 | 8 21 10 . 1 10 20 20 1 5 Critical Kills . | . . . . . . . . . . Critical Parts Destroyed 1 | . . . . . . . . . 1 Critical Strikes 3 | . 1 . . . . . 1 . 1 Burn 1 | . . . . . . . 1 . . Corrupt 1 | . 1 . . . . . . . . Smash 1 | . . . . . . . . . 1 Melee Attacks 19 | . . . . . 1 7 3 . 8 Impact 19 | . . . . . 1 7 3 . 8 Slashing . | . . . . . . . . . . Piercing . | . . . . . . . . . . Sneak Attacks . | . . . . . . . . . . Combat Hostiles . | . . . . . . . . . . Follow-up Attacks . | . . . . . . . . . . Damage Inflicted 4925 | 193 649 389 . 29 403 1047 1318 88 809 Guns 2554 | 193 491 134 . 29 111 380 461 88 667 Cannons 377 | . . . . . . . 377 . . Explosions 1773 | . 158 249 . . 292 596 478 . . Melee 213 | . . . . . . 71 . . 142 Ramming 8 | . . 6 . . . . 2 . . Kinetic 2146 | 137 331 134 . 29 111 380 599 66 359 Thermal 637 | 56 12 . . . . . 239 22 308 Explosive 1715 | . 158 249 . . 234 596 478 . . Electromagnetic 206 | . 148 . . . 58 . . . . Impact 213 | . . . . . . 71 . . 142 Slashing . | . . . . . . . . . . Piercing . | . . . . . . . . . . Highest Corruption 8 | . 2 2 2 2 . 6 8 8 8 Average Corruption 4 | . 2 2 2 2 . 5 4 8 8 Corruption Purged . | . . . . . . . . . . Corruption Blocked . | . . . . . . . . . . Effects 133 | . 14 3 10 1 . 23 36 24 22 Message Errors 26 | . 4 . 2 1 . 6 7 4 2 Matter Fused 27 | . 4 1 4 . . 3 5 5 5 Heat Flow Errors 23 | . 1 . 2 . . 1 9 4 6 Energy Discharges 16 | . . 2 1 . . 2 4 4 3 Parts Rejected 4 | . 1 . . . . 1 1 1 . Parts Fused 1 | . . . . . . . . 1 . Data Loss (minor) 16 | . 3 . 1 . . 5 4 1 2 Data Loss (major) 4 | . 1 . . . . 1 1 1 . Misfires 8 | . . . . . . . 3 2 3 Alerts 5 | . . . . . . 2 2 1 . Weapon Failures 3 | . . . . . . 2 . . 1 Overload Shots . | . . . . . . . . . . Overflow Damage 73 | . . 6 . . . . 13 . 54 Projectiles . | . . . . . . . . . . Explosions 19 | . . 6 . . . . 13 . . Melee 54 | . . . . . . . . . 54 Knockbacks 2 | . . . . . . . 1 . 1 Impact 1 | . . . . . . . . . 1 Kinetic 1 | . . . . . . . 1 . . Secondary . | . . . . . . . . . . Self-Inflicted Damage 199 | . 8 62 . . . 33 96 . . Shots 7 | . 1 3 . . . 1 2 . . Rammed 2 | . . . . . . . 2 . . Targets Rammed 3 | . . 1 . . . . 2 . . Kicked 1 | . . 1 . . . . . . . Crushed . | . . . . . . . . . . Highest Temperature 555 | . 273 2 268 . 9 173 190 244 555 Average Temperature 97 | . 123 2 125 . 4 34 51 84 152 Received Heat Transfer 1191 | . 120 12 . . 72 252 690 . 45 Effects 8 | . . . . . . . . . 8 Shutdowns 2 | . . . . . . . . . 2 Energy Bleed 1 | . . . . . . . . . 1 Interference 2 | . . . . . . . . . 2 Short Circuit 2 | . . . . . . . . . 2 Damage (minor) 1 | . . . . . . . . . 1 Siege Activations . | . . . . . . . . . . Martial Activations . | . . . . . . . . . . Shielding Activations . | . . . . . . . . . . Robots Disrupted . | . . . . . . . . . . Combat Hostiles . | . . . . . . . . . . Robots Corrupted 1 | . . . . . . . . . 1 Combat Hostiles 1 | . . . . . . . . . 1 Parts Fried 1 | . 1 . . . . . . . . Impact Corruptions 2 | . . . . . . . . . 2 Robots Melted . | . . . . . . . . . . Combat Hostiles . | . . . . . . . . . . Parts Melted 3 | . . . . . . . 3 . . Heat Transferred 1075 | 125 25 . . . . . 407 37 481 Parts Sabotaged . | . . . . . . . . . . Parts Stolen . | . . . . . . . . . . Parts Stripped . | . . . . . . . . . . Power Chain Reactions . | . . . . . . . . . . Alert | -11 -10 -10 -10 -9 -8 -8 -7 -7 -7 ------- Run | Yrd Mat Min Exi Min Mat Sto Fac Was Fac Maximum Alert Level 1 | . . . . . . 1 . . . Low Security (%) 95 | 100 100 100 . 100 100 57 100 100 100 Level 1 4 | . . . . . . 42 . . . Level 2 . | . . . . . . . . . . Level 3 . | . . . . . . . . . . Level 4 . | . . . . . . . . . . Level 5 . | . . . . . . . . . . High Security . | . . . . . . . . . . Max Security . | . . . . . . . . . . Peak Influence 359 | 5 178 98 . 5 118 359 136 16 38 Initial 136 | . . . . . 1 31 136 10 . Average 37 | 1 47 57 . . 24 160 21 . 3 Influence Increases 1941 | 35 281 178 . 10 196 820 296 30 95 Destroy 0b10 Robot/C 1000 | . 160 100 . . 120 380 200 . 40 Destroy 0b10 Robot/NC 125 | 35 30 10 . 5 5 30 5 . 5 Destroy Leader 264 | . 34 20 . . 32 98 60 . 20 Allied During Kill 146 | . . 6 . . . 140 . . . Successful Hack 87 | . 33 . . 5 . 35 . . 14 Disable Machine 105 | . . 15 . . 15 60 15 . . Destroy Structure 199 | . 24 27 . . 24 77 16 30 1 Lose Combat Pursuer 15 | . . . . . . . . . 15 Influence Decreases 1941 | 35 281 110 68 5 126 594 566 61 95 Entered New Map 302 | . . . 68 . 4 44 165 21 . Time Decay 1137 | 35 191 110 . 5 112 310 281 20 73 Lost Part 232 | . . . . . 10 80 120 . 22 Lost Ally 180 | . . . . . . 160 . 20 . Purge Threat 90 | . 90 . . . . . . . . Squads Dispatched 15 | . . . . . . 6 6 . 3 Investigation 3 | . . . . . . 2 . . 1 Extermination 4 | . . . . . . . 3 . 1 Reinforcement 5 | . . . . . . 1 3 . 1 Assault . | . . . . . . . . . . Garrison 3 | . . . . . . 3 . . . Intercept . | . . . . . . . . . . Searches Triggered . | . . . . . . . . . . Construction Impeded 1 | . . . . . . . 1 . . Haulers Reinforced 1 | . . . . . . . 1 . . Active Scanning Responses . | . . . . . . . . . . Cargo Convoy Interrupts 1 | . . . . . . . 1 . . Stealth | -11 -10 -10 -10 -9 -8 -8 -7 -7 -7 --------- Run | Yrd Mat Min Exi Min Mat Sto Fac Was Fac Distress Signals 3 | . 1 . . . 1 1 . . . Communications Jammed . | . . . . . . . . . . Distress Signals . | . . . . . . . . . . Times Spotted 82 | . 15 5 . . 8 22 15 11 6 Peak Tracking Total 6 | . 4 3 . . 5 5 4 6 4 Tactical Retreats 2 | . . . . . . . . 1 1 Traps | -11 -10 -10 -10 -9 -8 -8 -7 -7 -7 ------- Run | Yrd Mat Min Exi Min Mat Sto Fac Was Fac Traps Triggered 4 | . 1 . . . . 2 1 . . Indirectly . | . . . . . . . . . . Trap Hack Attempts . | . . . . . . . . . . Triggered . | . . . . . . . . . . Disarmed . | . . . . . . . . . . Reprogrammed . | . . . . . . . . . . Reused . | . . . . . . . . . . Traps Extracted . | . . . . . . . . . . Installed . | . . . . . . . . . . Triggered . | . . . . . . . . . . Machines | -11 -10 -10 -10 -9 -8 -8 -7 -7 -7 ---------- Run | Yrd Mat Min Exi Min Mat Sto Fac Was Fac Machines Disabled 7 | . . 1 . . 1 4 1 . . Max in Single Turn 1 | . . 1 . . 1 1 1 . . Machines Repaired . | . . . . . . . . . . Machines Dismantled . | . . . . . . . . . . Machines Sabotaged . | . . . . . . . . . . Overloaded Fab Kills . | . . . . . . . . . . Hacking | -11 -10 -10 -10 -9 -8 -8 -7 -7 -7 --------- Run | Yrd Mat Min Exi Min Mat Sto Fac Was Fac Machines Accessed 19 | . 6 . 2 1 1 6 1 . 2 Terminals 14 | . 6 . . 1 1 5 . . 1 Fabricators 1 | . . . . . . . 1 . . Repair Stations 2 | . . . . . . 1 . . 1 Recycling Units . | . . . . . . . . . . Scanalyzers . | . . . . . . . . . . Garrison Access . | . . . . . . . . . . Total Hacks 59 | . 25 . 3 2 2 18 2 . 7 Successful 33 | . 17 . 3 1 . 9 . . 3 Failed 26 | . 8 . . 1 2 9 2 . 4 Catastrophic 1 | . . . . . . . 1 . . Database Lockouts . | . . . . . . . . . . Manual 32 | . 13 . 1 1 2 13 2 . . Terminals 48 | . 25 . . 2 2 16 . . 3 Fabricators 2 | . . . . . . . 2 . . Repair Stations 6 | . . . . . . 2 . . 4 Recycling Units . | . . . . . . . . . . Scanalyzers . | . . . . . . . . . . Garrison Access . | . . . . . . . . . . Terminal Hacks 15 | . 8 . 3 1 . 2 . . 1 Record 2 | . . . 2 . . . . . . Robot Analysis 1 | . . . . . . 1 . . . Prototype ID Bank 2 | . 2 . . . . . . . . Open Door 1 | . . . . . . 1 . . . Unreport Threat 1 | . 1 . . . . . . . . Locate Traps 5 | . 4 . . . . . . . 1 Zone Layout 2 | . 1 . . 1 . . . . . Proto ID Catalog 1 | . . . 1 . . . . . . Fabricator Hacks . | . . . . . . . . . . Repair Station Hacks 2 | . . . . . . . . . 2 Scan Component 1 | . . . . . . . . . 1 Repair 1 | . . . . . . . . . 1 Recycling Unit Hacks . | . . . . . . . . . . Scanalyzer . | . . . . . . . . . . Garrison Access Hacks . | . . . . . . . . . . Unauthorized Hacks 16 | . 9 . . . . 7 . . . Terminals 16 | . 9 . . . . 7 . . . Assimilate 1 | . 1 . . . . . . . . Botnet 5 | . 2 . . . . 3 . . . Operators 1 | . 1 . . . . . . . . Skim 9 | . 5 . . . . 4 . . . Fabricators . | . . . . . . . . . . Repair Stations . | . . . . . . . . . . Recycling Units . | . . . . . . . . . . Scanalyzers . | . . . . . . . . . . Garrison Access . | . . . . . . . . . . Data Cores Recovered 2 | . 1 . . . . . . . 1 Used . | . . . . . . . . . . Hacking Detections 16 | . 6 . . 1 1 5 1 . 2 Full Trace Events 1 | . . . . . . . . . 1 Feedback Events . | . . . . . . . . . . Feedback Blocked . | . . . . . . . . . . Robot Schematics Acquired . | . . . . . . . . . . Robots Built . | . . . . . . . . . . Authchips . | . . . . . . . . . . Time . | . . . . . . . . . . Total Robot Build Rating . | . . . . . . . . . . Part Schematics Acquired . | . . . . . . . . . . Parts Built . | . . . . . . . . . . Authchips . | . . . . . . . . . . Time . | . . . . . . . . . . Total Part Build Rating . | . . . . . . . . . . Parts Repaired 1 | . . . . . . . . . 1 Time 56 | . . . . . . . . . 56 Parts Recycled . | . . . . . . . . . . Recycled Matter . | . . . . . . . . . . Retrieved Matter . | . . . . . . . . . . Retrieved Components . | . . . . . . . . . . Parts Scanalyzed . | . . . . . . . . . . Part Schematics Acquired . | . . . . . . . . . . Parts Damaged . | . . . . . . . . . . Bothacking | -11 -10 -10 -10 -9 -8 -8 -7 -7 -7 ------------ Run | Yrd Mat Min Exi Min Mat Sto Fac Was Fac Used RIF Installer . | . . . . . . . . . . Robots Hacked . | . . . . . . . . . . Non-combat . | . . . . . . . . . . Combat . | . . . . . . . . . . Robot Hacks Applied . | . . . . . . . . . . Relay Couplers Released . | . . . . . . . . . . Fabnet Peak Effective % . | . . . . . . . . . . Robots Rewired . | . . . . . . . . . . Allies Hacked . | . . . . . . . . . . Hacks Repelled . | . . . . . . . . . . Allies | -11 -10 -10 -10 -9 -8 -8 -7 -7 -7 -------- Run | Yrd Mat Min Exi Min Mat Sto Fac Was Fac Total Allies 30 | . . 2 . . . 10 . 18 . Largest Group 18 | . . 2 2 . . 10 . 18 2 Highest-Rated Group 434 | . . 38 38 . . 173 . 434 62 Highest-Rated Ally 35 | . . 31 31 . . 29 . 35 31 Total Orders . | . . . . . . . . . . Ally Attacks 284 | . . . . . . 86 . 194 4 Total Damage 5500 | . . . . . . 1110 . 4326 64 Kills 23 | . . . . . . 13 . 9 1 Allies Corrupted . | . . . . . . . . . . Allies Melted . | . . . . . . . . . . Intel | -11 -10 -10 -10 -9 -8 -8 -7 -7 -7 ------- Run | Yrd Mat Min Exi Min Mat Sto Fac Was Fac Active Infowar (turns) 4711 | 87 926 254 989 212 713 695 835 . . Structural 2285 | . 44 . . . 711 695 835 . . Seismic 3143 | 87 882 254 989 212 304 415 . . . Robot Analysis Total 1 | . . . . . . 1 . . . Derelict Logs Recovered 1 | . . . . 1 . . . . . Drone Launches . | . . . . . . . . . . Drone Recoveries . | . . . . . . . . . . Exploration | -11 -10 -10 -10 -9 -8 -8 -7 -7 -7 ------------- Run | Yrd Mat Min Exi Min Mat Sto Fac Was Fac Turns Passed 7437 | 228 1103 254 989 212 713 695 1955 625 663 Spaces Moved 3524 | 144 662 163 570 97 353 282 349 611 293 Core 544 | 2 . . . . . . 209 333 . Treads 485 | . . . . . . . . 192 293 Legs 2405 | 142 662 163 570 97 353 282 136 . . Wheels . | . . . . . . . . . . Hover 86 | . . . . . . . . 86 . Flight 4 | . . . . . . . 4 . . Fastest Speed 50 | 50 120 120 120 190 120 120 50 50 160 Average Speed 174 | 119 120 120 172 190 148 161 526 89 160 Slowest Speed 800 | 120 190 120 190 190 190 330 800 160 160 Overloaded Moves . | . . . . . . . . . . Propulsion Burnouts . | . . . . . . . . . . Robots Hopped . | . . . . . . . . . . Potential Cave-ins . | . . . . . . . . . . Cave-ins Triggered . | . . . . . . . . . . Exploration Rate (%) 40 | 7 86 32 79 18 23 44 10 97 7 Regions Visited 9 Branch Regions 4 Pre-discovered Areas 2 | . . . 1 1 . . . . . Known Exits Taken 2 | . . . . 1 . 1 . . . Unknown Exits Taken 5 | 1 1 1 1 . 1 . . . . Scrap Searched . | . . . . . . . . . . Spaces Dug 8 | . 2 . . . 1 4 1 . . Terrain Destroyed 176 | . 24 27 . . 23 87 15 . . Melee 6 | . . . . . 1 4 1 . . Projectile 2 | . 2 . . . . . . . . AOE 168 | . 22 27 . . 22 83 14 . . Terrain Rammed . | . . . . . . . . . . Walls Destroyed . | . . . . . . . . . . Machines Disabled . | . . . . . . . . . . Actions | -11 -10 -10 -10 -9 -8 -8 -7 -7 -7 --------- Run | Yrd Mat Min Exi Min Mat Sto Fac Was Fac Total 4450 | 173 880 201 578 123 512 455 407 685 436 Wait 521 | . 132 17 . 21 109 105 3 34 100 Move 3516 | 143 661 162 569 96 352 281 349 610 293 Hop . | . . . . . . . . . . Pick Up 53 | 8 8 2 5 2 9 4 3 11 1 Fast Attach 30 | 7 2 . . . 1 2 8 6 4 Attach 27 | . . . . 2 4 4 11 4 2 Detach 2 | . . . . . . . 1 . 1 Swap 69 | 1 28 6 1 . 11 14 2 4 2 Drop 46 | 2 9 3 3 . 6 7 1 11 4 Fire 162 | 12 40 10 . 1 19 30 24 5 21 Melee 19 | . . . . . 1 7 3 . 8 Ram 2 | . . . . . . . 2 . . Kick 1 | . . 1 . . . . . . . Crush . | . . . . . . . . . . Escape Stasis . | . . . . . . . . . . Rewire 2 | . . . . 1 . 1 . . . Trap . | . . . . . . . . . . Miscellaneous . | . . . . . . . . . . Route ------- -11/Scrapyard -10/Materials (discovered 4 exits: *Mat x3 / [*Min]) -10/Mines (discovered 3 exits: Mat x2 / *Exi) -10/Exiles (discovered 2 exits: *Min x2) -9/Mines (discovered 2 exits: *Mat x2) -8/Materials -8/Storage -7/Factory -7/Waste -7/Factory History --------- Turn | Location | Event 6 | -11/Scrapyard | Discovered new exit (range 15) 229 | -11/Scrapyard | Entered Materials 349 | -10/Materials | Build established: Mutant 398 | -10/Materials | Discovered new exit (range 8) 457 | -10/Materials | Discovered new exit (range 7) 913 | -10/Materials | Learned location of 2 exits from Subcaves 985 | -10/Materials | Loaded intel: 1 repair station location 1049 | -10/Materials | Learned 2 Storage zone layouts 1064 | -10/Materials | Discovered new exit (range 9) 1104 | -10/Materials | Identified exit to Materials 1147 | -10/Materials | Loaded intel: 13 trap records 1332 | -10/Materials | Entered Mines 1338 | -10/Mines | Met a Derelict bent on vengeance 1563 | -10/Mines | Deemed a non-threat by the Exiles lab entrance 1563 | -10/Mines | Discovered new exit (range 5) 1586 | -10/Mines | Entered Exiles 1586 | -10/Exiles | Accompanied by 2 allies 1616 | -10/Exiles | Led the pair of lost Derelicts to a safe place 1621 | -10/Exiles | Met 8R-AWN 1646 | -10/Exiles | Discovered new exit (range 14) 1706 | -10/Exiles | Met EX-HEX 1800 | -10/Exiles | Met EX-DEC 1844 | -10/Exiles | Visited The Gauntlet 1940 | -10/Exiles | Learned location of Zion (-6) 2252 | -10/Exiles | Met EX-BIN 2278 | -10/Exiles | Aligned with FarCom system 2280 | -10/Exiles | Given EX-Vault access code 2324 | -10/Exiles | Opened EX-Vault 2335 | -10/Exiles | Found Cloak of Protection 2373 | -10/Exiles | Warned to stay clear of 0b10 Research branches 2552 | -10/Exiles | Discovered new exit (range 14) 2575 | -10/Exiles | Left Exiles lab with Cloak of Protection 2575 | -10/Exiles | Entered Mines 2576 | -9/Mines | Identified exit to Materials 2787 | -9/Mines | Entered Materials 2787 | -8/Materials | Evolved 4 slots: Propulsion x2, Utility x2 3468 | -8/Materials | Discovered new exit (range 6) 3500 | -8/Materials | Entered Storage 3501 | -8/Storage | Identified exit to Factory 3513 | -8/Storage | Assisted by bots powering up and referring to "LRC-V3" 3823 | -8/Storage | Build established: Commander-Mutant 3867 | -8/Storage | Garrison activated, responded to threat 3967 | -8/Storage | Lost 8 allies 4075 | -8/Storage | Lost 3 parts (1n2u) 4195 | -8/Storage | Entered Factory 4195 | -7/Factory | Evolved 2 slots: Propulsion x1, Weapon x1 4223 | -7/Factory | Lost 4 parts (1p2n1u) 4461 | -7/Factory | Build established: Mutant 5079 | -7/Factory | Lost 3 parts (2u1w) 5218 | -7/Factory | Cargo convoy interrupted 6100 | -7/Factory | Core integrity fell below 50% 6123 | -7/Factory | Core integrity fell below 20% 6128 | -7/Factory | Released all parts (5) 6150 | -7/Factory | Sucked down chute 6150 | -7/Factory | Entered Waste 6157 | -7/Waste | Lost 12 parts (1n1u10w) 6175 | -7/Waste | Spotted C-40 Crusher 6177 | -7/Waste | Spotted C-40 Crusher 6192 | -7/Waste | Spotted C-40 Crusher 6205 | -7/Waste | Spotted C-40 Crusher 6207 | -7/Waste | Spotted C-40 Crusher 6209 | -7/Waste | Spotted C-40 Crusher 6294 | -7/Waste | Discovered new exit (range 15) 6314 | -7/Waste | Warlord forces began an assault 6387 | -7/Waste | Allies destroyed C-40 Crusher 6391 | -7/Waste | Allies destroyed C-40 Crusher 6405 | -7/Waste | Allies destroyed C-40 Crusher 6429 | -7/Waste | Allies destroyed C-40 Crusher 6470 | -7/Waste | Allies destroyed C-40 Crusher 6486 | -7/Waste | Allies destroyed C-40 Crusher 6509 | -7/Waste | Lost 15 allies 6725 | -7/Waste | Build established: Scavenger-Mutant 6775 | -7/Waste | Entered Factory 6775 | -7/Factory | Accompanied by 2 allies 7055 | -7/Factory | Repaired Antigrav System 7430 | -7/Factory | Lost 5 parts (2n2u1w) 7438 | -7/Factory | Destroyed by G-47 Trooper with Particle Gun Last Messages --------------- 07408_ K-01 Serf collects debris. 07410_ Hvy. Flail blasted off. 07411_ K-01 Serf collects debris. 07417_ U-05 Engineer builds a Wall. 07420_ Slug penetrates Wall. 07420_ K-01 Serf collects debris. 07425_ U-05 Engineer builds a Wall. 07430_ 8#MZVK6ANHJI6ARPLW9TYNC1/ISH 07430_ H-61 Shepherd misfires. 07431_ Power failure, Antimatter Reactor shutdown. 07433_ Hvy. Treads broken. 07433_ Overheating: Short circuit. 07435_ Overheating: System interference. 07435_ Hvy. Beamcaster temporarily disabled. 07435_ U-05 Engineer builds a Wall. 07438_ Power failure, Antimatter Reactor shutdown. 07438_ Overheating: Hvy. Battle Rifle damaged (-50). Map ----- +----------------------------------------------------+ | """ #####+######### ??????????? | | """ #?# ## ?????????? | | #?# """ " " ############?????????? | | ### #?# "R " " #????????????????????? | | ??# #?# """ " " #????????????????????? | | ??#% * #?# " " #????????????????????? | | ??# = #?# " " #????????????????????? | | ??#!/"""" ###?# " " #????????????????????? | | ### """" #???# " " #????????????????????? | | """" #???# " " #????????????????????? | | """" #???# " " #????????????????????? | | """" "#???# #????????????????????? | | ^^ """" "#???# #????????????????????? | | ^^ """" "#???# #????????????????????? | | T#???# #????????????????????? | | "#???# #????????????????????? | | "#???#########+##????????????????????? | | +## "#???????????? #?????????????????????? | | # #???????????? #?????????????????????? | | " # #??????##???? #?????????????????????? | | " # ######???????;#### #####?????????????????? | | " # #???????????## #?????????????????? | | # ############## #?????????????????? | | " # % % % #?????????????????? | | " # #?????????????????? | | " # % = k % @H +?????????????????? | | # % %!*%g u | #?????????????????? | | # ||%!g g % #?????????????????? | | ##########+######### #?????????????????? | | #???# !% #?# # ????????????????? | | ###???# #?## ## ??????????????? | | ??????# # ## u##?###?????????????? | | ??????# """ """ ##? #??????????????????? | | ??????# """ """ #??T #??????????????????? | | ??????# """ """ #?## #??????????????????? | | ??????# #??# #??????????????????? | | ??????# """ """ #??# ^k #??????????????????? | | ??????# ??"" """??#??# ^ #??????????????????? | | ??????# ????" ""??????# #??????????????????? | | ??????#????? ???????# ???????????????????? | | ???????????? ???????? ?????????????????????? | | ?????????????##??????????????????????????????????? | | ?????????????????????????????????????????????????? | | ?????????????????????????????????????????????????? | | ?????????????????????????????????????????????????? | | ?????????????????????????????????????????????????? | | ?????????????????????????????????????????????????? | | ?????????????????????????????????????????????????? | | ?????????????????????????????????????????????????? | | ?????????????????????????????????????????????????? | +----------------------------------------------------+ Best States ------------- Heat Dissipation 48 Energy Generation 21 Energy Capacity 475 Matter Stores 500 Matter Capacity 500 Sight Range 16 Terrain Scan Density 10 Armor Coverage 525 Resistance: EM 15 Evasion (%) 55 Recoil Reduction 2 Matter Filtering 30 Item Schematics ----------------- None Robot Schematics ------------------ None Fabricated ------------ Nothing Repaired ---------- Antigrav System | 9% | -7/Factory Alien Tech Used ----------------- None Achievements -------------- None Challenges ------------ None Game ------ Seed WaveSensorDissipator Manual? 0 Play Time 01:00:51 Cumulative 126.3 hours Start 2025.08.31 @ 15:36:14 End 2025.09.01 @ 03:45:40 Sessions 2 Manual Loads 0 Difficulty Rogue Special Mode None Game No. 140 Rogue 140 Adventurer 0 Explorer 0 Win Type - Total 0 Types 0/0/0/0/0/0/0/0/0/0 Lore% 61 Gallery% 45 Achievement% 37 Wizard Run 0 Options --------- Layout 1 ASCII 0 Keyboard 0 Movement Mouse Keybinds 0 Fullscreen 2 Font 48/Smallcaps Map View 50x35 Zoom Use 0% Tactical HUD 1 Map Filters NONE Filters NONE Steam 0 RUN: 373490cf-48fb-48a0-8a75-ea66fc1c7726